Cogmind - Beta 17 @@@ ROGUE MODE // 2026.08.14 @ 17:37:38 Player: 4R-ZE3 Result: Self-destructed Performance ------------- Evolutions (2) 1000 Regions Visited (7) 1400 Robots Destroyed (66) 330 Value Destroyed (1707) 1707 Prototype IDs (26) 520 Alien Tech Used (0) 0 Bonus (439) 439 TOTAL SCORE: 5396 Bonus ------- Follower Combat Kills 139 Aligned with FarCom 300 Cogmind --------- Core Integrity 481/550 Matter 300/300 Energy 250/250 System Corruption 0% Temperature Cool (0) Movement Rolling (130) Ox4 Location -8/Materials Parts ------- > --- POWER (1) -------- Ion Engine > --- PROPULSION (2) --- Wheel Wheel > --- UTILITY (6) ------ Improved Heat Sink Improved Heat Sink (fused) Huge Storage Unit Advanced Targeting Computer Advanced Targeting Computer Light Armor Plating > --- WEAPON (2) ------- Advanced Beam Cannon Advanced Beam Cannon > --- INVENTORY (25) --- Light Nuclear Core Light Treads Light Treads Light Treads Compact Wheel Heat Sink Heat Sink Advanced Targeting Computer Advanced Targeting Computer Actuator Array Light Armor Plating Light Armor Plating Light Armor Plating Particle Cannon Advanced Beam Cannon Rocket Launcher Flail Longsword +1 Peak State ------------ > --- POWER ------------ Light Angular Momentum Engine > --- PROPULSION ------- Wheel Wheel > --- UTILITY ---------- Improved Heat Sink Improved Heat Sink Huge Storage Unit Advanced Targeting Computer Advanced Targeting Computer Light Armor Plating > --- WEAPON ----------- Advanced Beam Cannon Advanced Beam Cannon > --- INVENTORY -------- Ion Engine Light Treads Light Treads Light Treads Wheel Compact Wheel Heat Sink Heat Sink Advanced Targeting Computer Advanced Targeting Computer Actuator Array Light Armor Plating Light Armor Plating Light Armor Plating Particle Cannon Advanced Beam Cannon Rocket Launcher Flail Longsword +1 [Rating: 30] Favorites ----------- Power Ion Engine Engine Ion Engine Propulsion Wheel Treads Light Treads Wheel Wheel Utility Improved Heat Sink Device Improved Heat Sink Storage Huge Storage Unit Processor Advanced Targeting Computer Hackware Hacking Suite Protection Light Armor Plating Weapon Advanced Beam Cannon Energy Gun Medium Laser Energy Cannon Advanced Beam Cannon Slashing Weapon Longsword +1 Build | -11 -10 -10 -9 -9 -9 -8 -8 ------- Run | Yrd Mat Min Mat Min Exi Min Mat Slots Evolved 4 | . . . 2 . . . 2 Power . | . . . . . . . . Propulsion . | . . . . . . . . Utility 4 | . . . 2 . . . 2 Weapon . | . . . . . . . . Parts Attached 48 | 8 5 1 11 4 1 10 8 Power 5 | 1 . . 2 . . 1 1 Engine 5 | 1 . . 2 . . 1 1 Core . | . . . . . . . . Reactor . | . . . . . . . . Propulsion 17 | 4 1 1 1 3 . 6 1 Treads 4 | 2 . . . . . 2 . Leg . | . . . . . . . . Wheel 13 | 2 1 1 1 3 . 4 1 Hover . | . . . . . . . . Flight . | . . . . . . . . Utility 15 | 1 2 . 4 1 . 3 4 Device 3 | . 1 . 1 . . 1 . Storage 3 | 1 1 . 1 . . . . Processor 2 | . . . . 1 . . 1 Hackware 2 | . . . 2 . . . . Protection 5 | . . . . . . 2 3 Artifact . | . . . . . . . . Weapon 11 | 2 2 . 4 . 1 . 2 Energy Gun 3 | 2 . . 1 . . . . Energy Cannon 7 | . 2 . 3 . . . 2 Ballistic Gun . | . . . . . . . . Ballistic Cannon . | . . . . . . . . Launcher . | . . . . . . . . Special Weapon . | . . . . . . . . Impact Weapon . | . . . . . . . . Slashing Weapon 1 | . . . . . 1 . . Piercing Weapon . | . . . . . . . . Special Melee Weapon . | . . . . . . . . Unidentified Prototypes 1 | . . . 1 . . . . Parts Lost 20 | . . 1 3 2 . 7 7 Power 3 | . . . . . . 1 2 Propulsion 8 | . . 1 1 1 . 4 1 Utility 6 | . . . 1 1 . 2 2 Weapon 3 | . . . 1 . . . 2 Highest Loss Streak 7 | . . 1 1 1 . 3 7 To Critical Strikes . | . . . . . . . . Average Backups 18 | 1 7 18 24 24 25 22 20 Power 1 | . 1 1 1 2 2 1 1 Propulsion 5 | . 2 7 7 4 5 3 4 Utility 7 | . 1 6 9 10 10 10 7 Weapon 4 | . 2 3 5 8 8 7 6 Tool/Special . | . . . . . . . . Unused Backups 27 | . 5 . 8 . 2 . 12 Power 1 | . . . 1 . . . . Propulsion 6 | . 2 . 2 . . . 2 Utility 10 | . . . 3 . . . 7 Weapon 10 | . 3 . 2 . 2 . 3 Tool/Special . | . . . . . . . . Average Slot Usage (%) 97 | . 98 100 98 99 89 92 98 Engine 12 | . 14 14 11 11 11 10 9 Treads 6 | . 26 . . . . 7 . Wheel 17 | . 1 27 22 21 22 13 17 Device 12 | . 12 14 10 11 11 11 12 Storage 12 | . 14 14 11 11 11 11 9 Processor 3 | . . . . 4 11 11 18 Hackware 6 | . . . 20 17 11 . . Protection 1 | . . . . . . 6 13 Energy Gun 2 | . 10 . . . . . . Energy Cannon 20 | . 17 28 22 22 6 20 17 Peak Build Rating 30 | 6 10 11 24 24 26 26 30 Average Rating 16 | 5 9 10 20 23 23 22 26 On Entrance 15 | . 6 10 11 24 24 26 24 Avg Prop Armor Cover (%) . | . . . . . . . . Naked Turns . | . . . . . . . . Heaviest Build 172 | 14 92 92 172 96 96 103 106 Greatest Support 40 | 40 40 20 20 26 26 40 20 Greatest Overweight (x) 9 | . 9 9 9 4 3 5 9 Average Overweight (x) 2 | . . 4 4 3 3 3 4 Largest Inventory Capacity 25 | 8 25 25 25 25 25 25 25 Average Capacity 21 | 7 8 25 25 25 25 25 25 Most Carried 25 | 4 9 23 25 25 25 25 23 Average Carried 18 | 2 7 18 24 24 24 22 20 Final Capacity 25 | 8 25 25 25 25 25 25 25 Final Carried 25 | 4 9 23 25 25 25 24 18 Class Distribution -------------------- 46% | Mutant 33% | Scavenger-Mutant 19% | Hacker-Mutant Dominant Class ---------------- Mutant | -10/Materials Mutant | -10/Mines Hacker-Mutant | -9/Materials Scavenger-Mutant | -9/Mines Scavenger-Mutant | -9/Exiles Scavenger-Mutant | -8/Mines Scavenger-Mutant | -8/Materials Resources | -11 -10 -10 -9 -9 -9 -8 -8 ----------- Run | Yrd Mat Min Mat Min Exi Min Mat Matter Collected 788 | 260 73 37 135 40 . 144 99 Remotely . | . . . . . . . . Salvage Created 2648 | . 337 268 740 195 . 665 443 Parts 137 | . 20 19 53 . . 22 23 Haulers Intercepted 4 | . 2 . 2 . . . . Recyclers Shooed 2 | . . . . . . 2 . Parts Field Recycled . | . . . . . . . . Retrieved Matter . | . . . . . . . . Parts Self-Destructed . | . . . . . . . . Prevented . | . . . . . . . . Parts Restored . | . . . . . . . . Kills | -11 -10 -10 -9 -9 -9 -8 -8 ------- Run | Yrd Mat Min Mat Min Exi Min Mat Combat Hostiles Destroyed 62 | . 6 6 16 13 . 8 13 Melee 3 | . . . . . . 3 . Cannons 59 | . 6 6 16 13 . 5 13 Classes Destroyed 13 | . 5 2 1 1 . 4 . Worker 5 | . 2 . 1 . . 2 . Builder 1 | . . . . . . 1 . Tunneler 1 | . . 1 . . . . . Hauler 4 | . 2 . 2 . . . . Recycler 3 | . . . . . . 3 . Operator 2 | . 1 . 1 . . . . Watcher 1 | . . . 1 . . . . Swarmer 15 | . 3 1 5 . . . 6 Grunt 25 | . 3 4 7 . . 6 5 Brawler 2 | . . . . . . 1 1 Duelist 2 | . . . . . . 1 1 Sentry 5 | . . 1 4 . . . . Assembled 13 | . . . . 13 . . . Best Kill Streak 7 | . 4 2 3 7 . 3 5 Combat Bots Only 7 | . 3 2 3 7 . 3 5 Max Kills in Single Turn 2 | . 2 1 1 2 . 1 2 Gunslinging . | . . . . . . . . Exploded . | . . . . . . . . Melee 1 | . . . . . . 1 . Uniques/NPCs Destroyed . | . . . . . . . . Combat | -11 -10 -10 -9 -9 -9 -8 -8 -------- Run | Yrd Mat Min Mat Min Exi Min Mat Hostile Shots Fired 220 | . 21 25 30 17 . 58 69 Missed 52 | . 4 5 12 4 . 9 18 Hits 168 | . 17 20 18 13 . 49 51 Melee 14 | . . . . 3 . 11 . Projectile 154 | . 17 20 18 10 . 38 51 Critical Strikes 7 | . . 1 . . . 5 1 Damage Taken 2346 | . 150 223 197 181 . 939 656 Core 445 | . 10 13 56 27 . 270 69 Absorbed by Shields . | . . . . . . . . Core Remaining (%) 67 | 100 . 90 . . . 11 . Volleys Fired 126 | . 15 11 27 17 . 33 23 Largest 2 | . 2 2 2 2 . 2 2 Hottest 136 | . 120 120 136 136 . 136 136 Shots Fired 252 | . 30 22 54 34 . 66 46 Gun 2 | . 2 . . . . . . Cannon 250 | . 28 22 54 34 . 66 46 Launcher . | . . . . . . . . Special . | . . . . . . . . Kinetic . | . . . . . . . . Thermal 252 | . 30 22 54 34 . 66 46 Explosive . | . . . . . . . . Electromagnetic . | . . . . . . . . Robot Hit Streak 17 | . 7 13 10 13 . 17 15 Robot Miss Streak 5 | . 5 1 3 4 . 2 1 Penetration Max . | . . . . . . . . Secondary Targets . | . . . . . . . . Shots Hit Robots 170 | . 15 14 29 21 . 55 36 Core Hits 93 | . 10 9 21 13 . 21 19 Critical Kills 1 | . 1 . . . . . . Critical Parts Destroyed . | . . . . . . . . Critical Strikes 1 | . 1 . . . . . . Meltdown 1 | . 1 . . . . . . Melee Attacks 6 | . . . . . . 6 . Impact . | . . . . . . . . Slashing 6 | . . . . . . 6 . Piercing . | . . . . . . . . Sneak Attacks 1 | . . . . . . 1 . Combat Hostiles 1 | . . . . . . 1 . Follow-up Attacks . | . . . . . . . . Damage Inflicted 3782 | . 350 248 599 452 . 1328 805 Guns . | . . . . . . . . Cannons 3459 | . 350 248 599 452 . 1005 805 Explosions 39 | . . . . . . 39 . Melee 283 | . . . . . . 283 . Ramming 1 | . . . . . . 1 . Kinetic . | . . . . . . . . Thermal 3498 | . 350 248 599 452 . 1044 805 Explosive . | . . . . . . . . Electromagnetic . | . . . . . . . . Impact . | . . . . . . . . Slashing 283 | . . . . . . 283 . Piercing . | . . . . . . . . Highest Corruption 6 | . . . . 6 6 6 . Average Corruption 5 | . . . . 4 6 6 . Corruption Purged . | . . . . . . . . Corruption Blocked . | . . . . . . . . Effects 26 | . . . . 4 6 16 . Message Errors 5 | . . . . 1 1 3 . Matter Fused 6 | . . . . . 2 4 . Heat Flow Errors 7 | . . . . 1 2 4 . Energy Discharges 3 | . . . . 1 . 2 . Parts Fused 1 | . . . . . . 1 . Data Loss (minor) 4 | . . . . 1 1 2 . Overload Shots . | . . . . . . . . Overflow Damage 46 | . . . . 12 . 30 4 Projectiles 30 | . . . . 12 . 14 4 Explosions . | . . . . . . . . Melee 16 | . . . . . . 16 . Knockbacks . | . . . . . . . . Impact . | . . . . . . . . Kinetic . | . . . . . . . . Secondary . | . . . . . . . . Self-Inflicted Damage . | . . . . . . . . Shots . | . . . . . . . . Rammed 1 | . . . . . . 1 . Targets Rammed 1 | . . . . . . 1 . Kicked . | . . . . . . . . Crushed . | . . . . . . . . Highest Temperature 342 | . 108 111 54 181 214 342 240 Average Temperature 70 | . 34 34 19 64 109 120 68 Received Heat Transfer 932 | . 30 93 78 20 . 414 297 Effects 4 | . . . . . . 4 . Energy Bleed 2 | . . . . . . 2 . Interference 2 | . . . . . . 2 . Siege Activations . | . . . . . . . . Martial Activations . | . . . . . . . . Shielding Activations . | . . . . . . . . Robots Disrupted . | . . . . . . . . Combat Hostiles . | . . . . . . . . Robots Corrupted . | . . . . . . . . Combat Hostiles . | . . . . . . . . Parts Fried . | . . . . . . . . Impact Corruptions . | . . . . . . . . Robots Melted 1 | . 1 . . . . . . Combat Hostiles . | . . . . . . . . Parts Melted 14 | . 3 . 4 . . 4 3 Heat Transferred 6414 | . 703 518 1110 814 . 1863 1406 Parts Sabotaged . | . . . . . . . . Parts Stolen . | . . . . . . . . Parts Stripped . | . . . . . . . . Power Chain Reactions . | . . . . . . . . Alert | -11 -10 -10 -9 -9 -9 -8 -8 ------- Run | Yrd Mat Min Mat Min Exi Min Mat Maximum Alert Level 1 | . . . 1 . . . 1 Low Security (%) 98 | 100 100 100 98 100 . 100 83 Level 1 1 | . . . 1 . . . 16 Level 2 . | . . . . . . . . Level 3 . | . . . . . . . . Level 4 . | . . . . . . . . Level 5 . | . . . . . . . . High Security . | . . . . . . . . Max Security . | . . . . . . . . Peak Influence 210 | . 71 92 201 71 . 104 210 Initial 71 | . . 13 . 71 . . . Average 46 | . 21 31 98 17 . 34 107 Influence Increases 1759 | . 217 253 660 15 . 274 340 Destroy 0b10 Robot/C 1120 | . 120 180 400 . . 160 260 Destroy 0b10 Robot/NC 90 | . 25 10 25 . . 30 . Destroy Leader 240 | . 34 30 96 . . 30 50 Allied During Kill 108 | . . 33 75 . . . . Successful Hack 24 | . 8 . 16 . . . . Select Force Hacks 60 | . 30 . 30 . . . . Disable Machine 60 | . . . 15 15 . 30 . Destroy Structure 27 | . . . 3 . . 24 . Lose Combat Pursuer 30 | . . . . . . . 30 Influence Decreases 1569 | . 183 287 476 199 . 274 150 Entered New Map 134 | . . 21 . 113 . . . Time Decay 1049 | . 183 266 256 60 . 204 80 Lost Part 156 | . . . 10 6 . 70 70 Lost Ally 60 | . . . 40 20 . . . Purge Threat 170 | . . . 170 . . . . Squads Dispatched 9 | . 2 . 1 . . . 6 Investigation 4 | . 2 . 1 . . . 1 Extermination . | . . . . . . . . Reinforcement 1 | . . . . . . . 1 Assault 2 | . . . . . . . 2 Garrison 2 | . . . . . . . 2 Intercept . | . . . . . . . . Searches Triggered . | . . . . . . . . Construction Impeded . | . . . . . . . . Haulers Reinforced . | . . . . . . . . Active Scanning Responses . | . . . . . . . . Cargo Convoy Interrupts . | . . . . . . . . Stealth | -11 -10 -10 -9 -9 -9 -8 -8 --------- Run | Yrd Mat Min Mat Min Exi Min Mat Distress Signals 6 | . 2 . 1 2 . . 1 Communications Jammed . | . . . . . . . . Distress Signals . | . . . . . . . . Times Spotted 81 | . 12 9 20 14 . 9 17 Peak Tracking Total 6 | . 2 3 4 4 . 3 6 Tactical Retreats 2 | . . . . 1 . . 1 Traps | -11 -10 -10 -9 -9 -9 -8 -8 ------- Run | Yrd Mat Min Mat Min Exi Min Mat Traps Triggered 3 | . 1 . . . . . 2 Indirectly . | . . . . . . . . Trap Hack Attempts . | . . . . . . . . Triggered . | . . . . . . . . Disarmed . | . . . . . . . . Reprogrammed . | . . . . . . . . Reused . | . . . . . . . . Traps Extracted . | . . . . . . . . Installed . | . . . . . . . . Triggered . | . . . . . . . . Machines | -11 -10 -10 -9 -9 -9 -8 -8 ---------- Run | Yrd Mat Min Mat Min Exi Min Mat Machines Disabled 4 | . . . 1 1 . 2 . Max in Single Turn 2 | . . . . 1 . 2 . Garrison Access 1 | . . . . . . . 1 Machines Repaired . | . . . . . . . . Machines Dismantled . | . . . . . . . . Machines Sabotaged . | . . . . . . . . Overloaded Fab Kills . | . . . . . . . . Hacking | -11 -10 -10 -9 -9 -9 -8 -8 --------- Run | Yrd Mat Min Mat Min Exi Min Mat Machines Accessed 15 | . 6 . 6 . 2 . 1 Terminals 9 | . 5 . 4 . . . . Fabricators . | . . . . . . . . Repair Stations . | . . . . . . . . Recycling Units 2 | . 1 . 1 . . . . Scanalyzers 2 | . . . 1 . . . 1 Garrison Access . | . . . . . . . . Total Hacks 64 | . 16 . 20 . 24 . 4 Successful 46 | . 6 . 12 . 24 . 4 Failed 17 | . 10 . 7 . . . . Catastrophic 2 | . 2 . . . . . . Database Lockouts 1 | . . . 1 . . . . Manual 34 | . 16 . 17 . 1 . . Terminals 32 | . 15 . 17 . . . . Fabricators . | . . . . . . . . Repair Stations . | . . . . . . . . Recycling Units 2 | . 1 . 1 . . . . Scanalyzers 6 | . . . 2 . . . 4 Garrison Access . | . . . . . . . . Terminal Hacks 33 | . 2 . 7 . 24 . . Record 23 | . . . . . 23 . . Robot Analysis 2 | . 2 . . . . . . Prototype ID Bank 1 | . . . 1 . . . . Branch Access Points 1 | . . . 1 . . . . Scanalyzer Index 1 | . . . 1 . . . . Unreport Threat 3 | . . . 3 . . . . Zone Layout 1 | . . . 1 . . . . Proto ID Catalog 1 | . . . . . 1 . . Fabricator Hacks . | . . . . . . . . Repair Station Hacks . | . . . . . . . . Recycling Unit Hacks . | . . . . . . . . Scanalyzer 4 | . . . . . . . 4 Retrieve Study 4 | . . . . . . . 4 Garrison Access Hacks . | . . . . . . . . Unauthorized Hacks 9 | . 4 . 5 . . . . Terminals 7 | . 3 . 4 . . . . Botnet 7 | . 3 . 4 . . . . Fabricators . | . . . . . . . . Repair Stations . | . . . . . . . . Recycling Units 2 | . 1 . 1 . . . . Tunnel 2 | . 1 . 1 . . . . Scanalyzers . | . . . . . . . . Garrison Access . | . . . . . . . . Data Cores Recovered 2 | . 1 . 1 . . . . Used . | . . . . . . . . Hacking Detections 10 | . 5 . 5 . . . . Full Trace Events . | . . . . . . . . Feedback Events . | . . . . . . . . Feedback Blocked . | . . . . . . . . Robot Schematics Acquired . | . . . . . . . . Robots Built . | . . . . . . . . Authchips . | . . . . . . . . Time . | . . . . . . . . Total Robot Build Rating . | . . . . . . . . Part Schematics Acquired . | . . . . . . . . Parts Built . | . . . . . . . . Authchips . | . . . . . . . . Time . | . . . . . . . . Total Part Build Rating . | . . . . . . . . Part Studies Acquired 4 | . . . . . . . 4 Parts Repaired . | . . . . . . . . Time . | . . . . . . . . Parts Recycled . | . . . . . . . . Recycled Matter . | . . . . . . . . Retrieved Matter . | . . . . . . . . Retrieved Components . | . . . . . . . . Parts Scanalyzed . | . . . . . . . . Part Schematics Acquired . | . . . . . . . . Parts Damaged . | . . . . . . . . Bothacking | -11 -10 -10 -9 -9 -9 -8 -8 ------------ Run | Yrd Mat Min Mat Min Exi Min Mat Used RIF Installer . | . . . . . . . . Robots Hacked . | . . . . . . . . Non-combat . | . . . . . . . . Combat . | . . . . . . . . Robot Hacks Applied . | . . . . . . . . Relay Couplers Released 2 | . . . . . . . 2 Machine Destruction 2 | . . . . . . . 2 Fabnet Peak Effective % . | . . . . . . . . Robots Rewired . | . . . . . . . . Allies Hacked . | . . . . . . . . Hacks Repelled . | . . . . . . . . Allies | -11 -10 -10 -9 -9 -9 -8 -8 -------- Run | Yrd Mat Min Mat Min Exi Min Mat Total Allies 3 | . . 3 . . . . . Largest Group 3 | . . 3 3 1 . . . Highest-Rated Group 40 | . . 40 40 16 . . . Highest-Rated Ally 16 | . . 16 16 16 . . . Total Orders . | . . . . . . . . Ally Attacks 63 | . . 9 38 16 . . . Total Damage 654 | . . 108 334 212 . . . Kills 11 | . . 4 4 3 . . . Allies Corrupted . | . . . . . . . . Allies Melted . | . . . . . . . . Intel | -11 -10 -10 -9 -9 -9 -8 -8 ------- Run | Yrd Mat Min Mat Min Exi Min Mat Active Infowar (turns) . | . . . . . . . . Robot Analysis Total 2 | . 2 . . . . . . Derelict Logs Recovered 1 | . . 1 . . . . . Drone Launches . | . . . . . . . . Drone Recoveries . | . . . . . . . . Exploration | -11 -10 -10 -9 -9 -9 -8 -8 ------------- Run | Yrd Mat Min Mat Min Exi Min Mat Turns Passed 3574 | 48 761 801 672 296 293 483 220 Spaces Moved 1954 | 36 409 526 369 127 215 178 94 Core 2 | 2 . . . . . . . Treads 424 | 2 388 . . . . 34 . Legs . | . . . . . . . . Wheels 1528 | 32 21 526 369 127 215 144 94 Hover . | . . . . . . . . Flight . | . . . . . . . . Fastest Speed 50 | 50 140 140 140 135 135 135 130 Average Speed 146 | 91 159 140 140 135 135 179 142 Slowest Speed 320 | 160 215 215 215 140 135 320 205 Overloaded Moves . | . . . . . . . . Propulsion Burnouts . | . . . . . . . . Robots Hopped . | . . . . . . . . Potential Cave-ins . | . . . . . . . . Cave-ins Triggered . | . . . . . . . . Exploration Rate (%) 40 | 4 70 94 43 21 60 26 9 Regions Visited 7 Branch Regions 4 Pre-discovered Areas 4 | . 1 1 1 . 1 . . Known Exits Taken 1 | . . . 1 . . . . Unknown Exits Taken 6 | 1 1 1 . 1 1 1 . Scrap Searched 3 | . . 2 . . . 1 . Spaces Dug . | . . . . . . . . Terrain Destroyed 27 | . . . . . . 27 . Melee . | . . . . . . . . Projectile 1 | . . . . . . 1 . AOE 26 | . . . . . . 26 . Terrain Rammed . | . . . . . . . . Walls Destroyed . | . . . . . . . . Machines Disabled . | . . . . . . . . Actions | -11 -10 -10 -9 -9 -9 -8 -8 --------- Run | Yrd Mat Min Mat Min Exi Min Mat Total 2418 | 47 492 565 481 217 219 264 133 Wait 184 | . 41 11 34 66 . 28 4 Move 1947 | 35 408 525 368 126 214 177 94 Hop . | . . . . . . . . Pick Up 60 | 4 13 15 19 2 . 5 2 Fast Attach 12 | 6 1 . 3 . 1 1 . Attach 25 | . . 1 5 2 . 8 9 Detach 2 | . . . . . 2 . . Swap 23 | 2 5 2 6 2 . 5 1 Drop 32 | . 9 . 19 2 2 . . Fire 126 | . 15 11 27 17 . 33 23 Melee 6 | . . . . . . 6 . Ram . | . . . . . . . . Kick . | . . . . . . . . Crush 1 | . . . . . . 1 . Escape Stasis . | . . . . . . . . Rewire . | . . . . . . . . Trap . | . . . . . . . . Miscellaneous . | . . . . . . . . Route ------- -11/Scrapyard -10/Materials (discovered 3 exits: *Mat / [*Min] / [*Sub]) -10/Mines -9/Materials (discovered 4 exits: *Mat / *Min x2 / Sto) -9/Mines -9/Exiles (discovered 2 exits: [*Min x2]) -8/Mines -8/Materials History --------- Turn | Location | Event 2 | -11/Scrapyard | Met Revision 17 18 | -11/Scrapyard | Discovered new exit (range 16) 49 | -11/Scrapyard | Entered Materials 50 | -10/Materials | Met a group of wandering Federalists 238 | -10/Materials | Discovered new exit (range 8) 312 | -10/Materials | Build established: Mutant 512 | -10/Materials | Discovered new exit (range 16) 771 | -10/Materials | Discovered new exit (range 11) 810 | -10/Materials | Entered Mines 820 | -10/Mines | Assisted by bots powering up and referring to "LRC-V3" 1221 | -10/Mines | Received a Rocket Launcher from a helpful Derelict 1378 | -10/Mines | Discovered new exit (range 7) 1611 | -10/Mines | Entered Materials 1611 | -9/Materials | Accompanied by 3 allies 1611 | -9/Materials | Evolved 2 slots: Utility x2 1789 | -9/Materials | Central database locked down 1891 | -9/Materials | Identified exit to Mines 1891 | -9/Materials | Identified exit to Storage 1939 | -9/Materials | Build established: Hacker-Mutant 2016 | -9/Materials | Discovered new exit (range 4) 2283 | -9/Materials | Entered Mines 2283 | -9/Mines | Accompanied by 1 ally 2284 | -9/Mines | Assembled infested the area 2447 | -9/Mines | Destroyed 7 combat bots 2572 | -9/Mines | Deemed a non-threat by the Exiles lab entrance 2573 | -9/Mines | Discovered new exit (range 5) 2579 | -9/Mines | Entered Exiles 2600 | -9/Exiles | Discovered new exit (range 15) 2616 | -9/Exiles | Met 8R-AWN 2638 | -9/Exiles | Met EX-HEX 2680 | -9/Exiles | Met EX-BIN 2695 | -9/Exiles | Aligned with FarCom system 2696 | -9/Exiles | Given EX-Vault access code 2727 | -9/Exiles | Opened EX-Vault 2737 | -9/Exiles | Found Longsword +1 2765 | -9/Exiles | Warned to stay clear of 0b10 Research branches 2796 | -9/Exiles | Build established: Scavenger-Mutant 2808 | -9/Exiles | Met EX-DEC 2815 | -9/Exiles | Learned location of Zion (-6) 2854 | -9/Exiles | Discovered new exit (range 15) 2872 | -9/Exiles | Left Exiles lab with Longsword +1 2872 | -9/Exiles | Entered Mines 2909 | -8/Mines | Lost 3 parts (1p1n1u) 2944 | -8/Mines | Discovered new exit (range 5) 3113 | -8/Mines | Core integrity fell below 50% 3151 | -8/Mines | Core integrity fell below 20% 3179 | -8/Mines | Lost 3 parts (2n1u) 3355 | -8/Mines | Entered Materials 3355 | -8/Materials | Evolved 2 slots: Utility x2 3422 | -8/Materials | Garrison activated, responded to threat 3565 | -8/Materials | Lost 7 parts (2p1n2u2w) 3575 | -8/Materials | Self-destructed Last Messages --------------- 03533_ Acquired 30 matter. 03534_ U-05 Engineer lays Concrete. 03534_ Wheel+ destroyed. 03535_ L-31 Rogue destroyed. 03538_ G-47 Trooper destroyed. 03544_ Acquired Lgt. Nuclear Core. 03550_ Acquired 20 matter. 03558_ W-25 Informer sends out distress signal. 03574_ Triggered EMP Trap. 03574_ A bubble of electromagnetic force engulfs the area. 03574_ ALERT: Garrison Access compromised, dispatching multiple assault carriers. 03574_ Garrison Access disabled. 03574_ Relay Coupler [Grunt] tumbles out of Garrison Access. 03574_ Relay Coupler [NC] tumbles out of Garrison Access. 03574_ Chain reaction triggered in Lgt. Nuclear Core. Map ----- +----------------------------------------------------+ | | | | | | | | | | | | | | | | | | | | | ?????????????????????????????????????????????????? | | ???????????????????????##########????############# | | ???????????????????????# =[#????# | | ???????????????????????# "" ###### | | ????????################ ""S +% | | ????????# # ! "" =###### | | ????????# + #????#### | | ????????# # """ #???????? | | ????????############ # """ #????????? | | ????????????# =! # # """ #?????????? | | ????????????# T =[%# # #??????????? ##### | | ????????????# *%=*+ %#####+######??????????#???? | | ????????????# *%%#/= ##?? ?????Y?w???????? | | ????????????# ===#=%%;;## #??????????????????? | | ????????????# %*# = #??????????????????? | | ????????????########== @ #??????????????????? | | ???????????????????# !! #??????????????????? | | ???????????????????# " #??????????????????? | | ???????????????????# "G" #??????????????????? | | ???????????????????# " #??????????????????? | | ???????????????????# +??????????????????? | | ???????????????????# #??????????????????? | | ???????????????????######## #??????????????????? | | ??????????????????????????? #??????????????????? | | ??????????????????????????? #??????????????????? | | ???????????????????????????? #??????????????????? | | ????????????????????????????? #??????????????????? | | ??????????????????????????????#??????????????????? | | ?????????????????????????????????????????????????? | | ?????????????????????????????????????????????????? | | ?????????????????????????????????????????????????? | | ?????????????????????????????????????????????????? | | ?????????????????????????????????????????????????? | | ?????????????????????????????????????????????????? | | ?????????????????????????????????????????????????? | | ?????????????????????????????????????????????????? | | ?????????????????????????????????????????????????? | | ?????????????????????????????????????????????????? | | ?????????????????????????????????????????????????? | | ?????????????????????????????????????????????????? | +----------------------------------------------------+ Best States ------------- Heat Dissipation 59 Energy Generation 18 Energy Capacity 265 Matter Stores 300 Matter Capacity 300 Sight Range 16 Terrain Scan Density 10 Armor Coverage 375 Evasion (%) 42 Targeting Accuracy 16 Recoil Reduction 2 Offensive Hacking 20 Item Schematics ----------------- None Robot Schematics ------------------ None Fabricated ------------ Nothing Repaired ---------- Nothing Studied --------- Wheel | -8/Materials | Hacked Com. Wheel | -8/Materials | Hacked Particle Cannon | -8/Materials | Hacked Rocket Launcher | -8/Materials | Hacked Alien Tech Used ----------------- None Achievements -------------- None Challenges ------------ None Game ------ Seed ShieldRelayLoader Manual? 0 Play Time 00:23:35 Cumulative 236.4 hours Start 2026.08.14 @ 17:15:35 End 2026.08.14 @ 17:37:38 Sessions 1 Manual Loads 0 Difficulty Rogue Special Mode None Game No. 239 Rogue 185 Adventurer 54 Explorer 0 Win Type - Total 11 Types 7/0/1/1/0/0/0/1/0/1 Lore% 75 Gallery% 63 Achievement% 58 Wizard Run 0 Options --------- Layout 1 ASCII 0 Keyboard 0 Movement Mouse Keybinds 1 Fullscreen 2 Font 32/Tamsyn Map View 50x35 Zoom Use 0% Tactical HUD 1 Map Filters NONE Filters NONE Steam 1 RUN: 740ad586-a194-44ec-9c8d-b5c892fc3f4e